bitfinex/quotes_SOLUSD_20230102
["timestamp","ask_amount","ask_price","bid_price","bid_amount"]
[1672624539721,144.4924835,9.8634,9.8575,20.0]
[1672624541303,144.4924835,9.8634,9.8564,45.80730786]
[1672624541304,144.4924835,9.8634,9.8571,20.0]
[1672624553939,144.4924835,9.8634,9.8569,20.0]
[1672624554148,144.4924835,9.8634,9.857,30.0]
[1672624554362,144.4924835,9.8634,9.8571,20.0]
[1672624557401,144.4924835,9.8634,9.8564,30.0]
[1672624557402,144.4924835,9.8634,9.857,20.0]
[1672624557605,144.4924835,9.8634,9.8565,20.0]
[1672624557817,30.0,9.8633,9.8561,20.0]
[1672624558022,30.0,9.8633,9.8557,15.80730786]
[1672624558023,144.4924835,9.8634,9.8559,20.0]
[1672624558228,22.6837,9.8635,9.8559,45.80730786]
[1672624558561,144.4924835,9.8633,9.8559,15.80730786]
[1672624558773,144.4924835,9.8633,9.8561,30.0]
[1672624559177,144.4924835,9.8633,9.8562,20.0]
[1672624559812,144.4924835,9.8633,9.856,20.0]
[1672624560235,144.4924835,9.8633,9.8561,15.80730786]
[1672624560775,30.0,9.8632,9.8562,20.0]
[1672624561198,30.0,9.8632,9.8563,15.80730786]
[1672624561404,30.0,9.8632,9.8564,20.0]
[1672624561608,144.4924835,9.8632,9.8564,20.0]
[1672624561818,30.0,9.8631,9.8565,15.80730786]
[1672624562239,174.4924835,9.8631,9.8566,20.0]
[1672624562452,174.4924835,9.8631,9.8564,20.0]
[1672624563088,174.4924835,9.8631,9.855,20.0]
[1672624563285,30.0,9.8629,9.855,50.0]
[1672624563912,174.4924835,9.8629,9.855,50.0]
[1672624564761,174.4924835,9.8629,9.8551,30.0]
[1672624564975,174.4924835,9.8629,9.8552,20.0]
[1672624565182,174.4924835,9.8629,9.855,50.0]
[1672624565401,174.4924835,9.8629,9.855,20.0]
[1672624565807,174.4924835,9.8629,9.8549,20.0]
[1672624575486,144.4924835,9.8629,9.8551,30.0]
[1672624575934,144.4924835,9.8629,9.8553,30.0]
[1672624576457,144.4924835,9.8629,9.8555,30.0]
[1672624576773,144.4924835,9.8629,9.8556,20.0]
[1672624576964,144.4924835,9.8629,9.8557,30.0]
[1672624577173,144.4924835,9.8629,9.8557,45.80730786]
[1672624577383,144.4924835,9.8629,9.8559,30.0]
[1672624577609,144.4924835,9.8629,9.856,20.0]
[1672624577796,0.00659712,9.8643,9.8586,30.0]
[1672624578232,47.926,9.8718,9.8587,35.80730786]
[1672624578438,76.11,9.8717,9.86,5.85]
[1672624578763,30.0,9.8716,9.8601,20.0]
[1672624578977,76.11,9.8715,9.8602,30.0]
[1672624579178,5.85,9.87,9.8603,20.0]
[1672624579501,30.0,9.8698,9.8603,20.0]
[1672624579921,23.6575,9.8697,9.8601,20.0]
[1672624580123,30.0,9.8695,9.8601,20.0]
[1672624580544,23.6575,9.8694,9.8601,20.0]
[1672624580755,30.0,9.8693,9.8601,20.0]
[1672624581166,30.0,9.8691,9.8601,20.0]
[1672624581903,30.0,9.8689,9.8601,20.0]
[1672624582339,30.0,9.8687,9.8601,20.0]
[1672624582749,272.12798349,9.8687,9.8601,20.0]
[1672624582957,30.0,9.8685,9.8601,20.0]
[1672624583167,30.0,9.8685,9.8589,20.0]
[1672624583384,30.0,9.8683,9.8589,20.0]
[1672624583918,30.0,9.8681,9.8589,20.0]
[1672624584129,30.0,9.8679,9.8589,20.0]
[1672624584317,76.14,9.8678,9.8589,20.0]
[1672624584647,30.0,9.8677,9.8589,20.0]
[1672624585048,30.0,9.8675,9.8589,20.0]
[1672624585491,272.12798349,9.8675,9.8589,20.0]
[1672624585806,30.0,9.8673,9.8589,20.0]
[1672624586227,30.0,9.8671,9.8589,20.0]
[1672624586751,272.12798349,9.8671,9.8589,20.0]
[1672624586984,30.0,9.8669,9.8589,20.0]
[1672624587694,30.0,9.8667,9.8589,20.0]
[1672624587903,76.15,9.8666,9.8589,20.0]
[1672624588216,30.0,9.8665,9.8589,20.0]
[1672624588432,76.15,9.8664,9.8589,20.0]
[1672624588643,30.0,9.8663,9.8555,20.0]
[1672624588854,76.2122,9.8663,9.8558,30.0]
[1672624589066,76.2122,9.8663,9.8559,20.0]
[1672624589693,30.0,9.8661,9.8559,20.0]
[1672624590015,106.15,9.8661,9.8559,77.40379422]
[1672624590211,30.0,9.8659,9.8559,77.40379422]
[1672624590422,30.0,9.8657,9.8559,77.40379422]
[1672624590853,30.0,9.8655,9.8559,77.40379422]
[1672624591491,30.0,9.8653,9.8559,77.40379422]
[1672624592020,30.0,9.8651,9.856,30.0]
[1672624592337,30.0,9.8651,9.8561,20.0]
[1672624592649,30.0,9.8649,9.8561,20.0]
[1672624593049,30.0,9.8647,9.8561,20.0]
[1672624593258,30.0,9.8647,9.856,20.0]
[1672624593900,30.0,9.8645,9.856,20.0]
[1672624594312,24.5687,9.8646,9.8561,30.0]
[1672624594523,22.5829,9.8644,9.8562,20.0]
[1672624594735,22.5829,9.8644,9.8561,30.0]
[1672624594943,22.5829,9.8644,9.8562,20.0]
[1672624595160,22.5829,9.8643,9.8562,20.0]
[1672624599995,22.5829,9.8643,9.8563,30.0]
[1672624600193,22.5829,9.8643,9.8564,20.0]
[1672624600409,22.5829,9.8643,9.8565,30.0]
[1672624600831,22.5829,9.8643,9.8566,20.0]
[1672624601051,22.5829,9.8643,9.8567,30.0]
[1672624601371,22.5829,9.8643,9.8568,20.0]
[1672624603869,22.5829,9.8643,9.8564,20.0]
[1672624604948,30.0,9.8642,9.8564,20.0]
[1672624605369,30.0,9.8642,9.856,20.0]
[1672624605772,30.0,9.8642,9.856,77.40379422]
[1672624605988,23.9279,9.8641,9.856,77.40379422]
[1672624606211,23.9279,9.8641,9.8561,30.0]
[1672624606419,23.9279,9.8641,9.8562,20.0]
[1672624606834,30.0,9.864,9.8562,20.0]
[1672624607040,30.0,9.864,9.856,57.40379422]
[1672624607041,30.0,9.864,9.8561,20.0]
[1672624607245,54.5698,9.864,9.8561,20.0]
[1672624608415,24.5698,9.864,9.8562,116.25419103]
[1672624608632,24.5698,9.864,9.8564,30.0]
[1672624608821,24.5698,9.864,9.8565,20.0]
[1672624609027,24.5698,9.864,9.8566,30.0]
[1672624609250,24.5698,9.864,9.8568,30.0]
[1672624609464,24.5698,9.864,9.8569,20.0]
[1672624609681,24.5698,9.864,9.857,30.0]
[1672624609876,24.5698,9.864,9.8572,30.0]
[1672624610081,24.5698,9.864,9.8574,30.0]
[1672624610290,24.5698,9.864,9.8575,20.0]
[1672624610518,24.5698,9.864,9.8576,30.0]
[1672624610732,24.5698,9.864,9.8578,30.0]
[1672624611446,24.5698,9.864,9.8579,20.0]
[1672624612299,24.5698,9.864,9.8577,20.0]
[1672624614836,24.5698,9.864,9.8573,20.0]
[1672624615671,24.5698,9.864,9.8571,20.0]
[1672624616082,24.5698,9.864,9.8572,30.0]
[1672624616294,24.5698,9.864,9.8573,20.0]
[1672624617772,24.5698,9.864,9.8571,20.0]
[1672624618175,24.5698,9.864,9.8572,30.0]
[1672624618403,24.5698,9.864,9.8574,30.0]
[1672624618911,24.5698,9.864,9.8576,30.0]
[1672624619334,24.5698,9.864,9.8577,20.0]
[1672624620080,24.5698,9.864,9.8578,30.0]
[1672624620288,24.5698,9.864,9.858,30.0]
[1672624620823,24.5698,9.864,9.8582,30.0]
[1672624621139,24.5698,9.864,9.8584,30.0]
[1672624621329,24.5698,9.864,9.8586,30.0]
[1672624621761,24.5698,9.864,9.8588,30.0]
[1672624621977,24.5698,9.864,9.859,30.0]
[1672624622381,24.5698,9.864,9.8591,20.0]
[1672624623122,24.5698,9.864,9.8592,30.0]
[1672624623337,24.5698,9.864,9.8593,20.0]
[1672624623536,24.5698,9.864,9.8591,20.0]
[1672624623960,24.5698,9.864,9.859,20.0]
[1672624627968,24.5698,9.864,9.8591,30.0]
[1672624628160,24.5698,9.864,9.859,20.0]
[1672624633515,30.0,9.8639,9.859,20.0]
[1672624640050,24.5698,9.864,9.859,20.0]
[1672624654780,24.5698,9.864,9.8591,20.0]
[1672624655820,24.5698,9.864,9.8569,20.0]
[1672624656259,24.5698,9.864,9.857,55.35412513]
[1672624656448,24.5698,9.864,9.8571,20.0]
[1672624656869,24.5698,9.864,9.8572,30.0]
[1672624657082,24.5698,9.864,9.8573,20.0]
[1672624664468,24.5698,9.864,9.8573,30.0]
[1672624664659,24.5698,9.864,9.8574,20.0]
[1672624666861,24.5698,9.864,9.8575,30.0]
[1672624667074,24.5698,9.864,9.8576,20.0]
[1672624667310,24.5698,9.864,9.8577,30.0]
[1672624667931,24.5698,9.864,9.8578,20.0]
[1672624668241,24.5698,9.864,9.8576,20.0]
[1672624676216,24.5698,9.864,9.8577,55.35412513]
[1672624676437,24.5698,9.864,9.8578,50.0]
[1672624676974,24.5698,9.864,9.858,30.0]
[1672624677163,24.5698,9.864,9.8581,20.0]
[1672624677374,24.5698,9.864,9.8581,75.35412513]
[1672624677580,24.5698,9.864,9.8582,55.35412513]
[1672624677814,24.5698,9.864,9.8583,20.0]
[1672624678217,24.5698,9.864,9.8584,55.35412513]
[1672624678427,24.5698,9.864,9.8585,20.0]
[1672624681894,30.0,9.8639,9.8585,20.0]
[1672624682417,24.5698,9.864,9.8585,20.0]
[1672624683905,30.0,9.8639,9.8585,20.0]
[1672624684437,24.5698,9.864,9.8586,30.0]
[1672624684750,24.5698,9.864,9.8587,20.0]
[1672624684948,24.5698,9.864,9.8588,30.0]
[1672624685145,24.5698,9.864,9.8588,85.35412513]
[1672624685360,24.5698,9.864,9.8589,75.35412513]
[1672624686203,24.5698,9.864,9.859,55.35412513]
[1672624686530,24.5698,9.864,9.8591,20.0]
[1672624688412,24.5698,9.864,9.8591,75.35412513]
[1672624688638,24.5698,9.864,9.8592,30.0]
[1672624688846,24.5698,9.864,9.8593,20.0]
[1672624689896,24.5698,9.864,9.8592,20.0]
[1672624691249,24.5698,9.864,9.8593,62.05016513]
[1672624691460,24.5698,9.864,9.8594,20.0]
[1672624691890,24.5698,9.864,9.8595,62.05016513]
[1672624692110,24.5698,9.864,9.8596,20.0]
[1672624692415,24.5698,9.864,9.8597,62.05016513]
[1672624692731,24.5698,9.864,9.8598,20.0]
[1672624693138,24.5698,9.864,9.8599,62.05016513]
[1672624693351,24.5698,9.864,9.86,20.0]
[1672624693766,22.7714,9.865,9.86,82.05016513]
[1672624695655,22.7714,9.865,9.86,20.0]
[1672624695993,22.7714,9.865,9.8568,30.0]
[1672624696211,23.0327,9.8649,9.8569,20.0]
[1672624696606,23.0327,9.8649,9.857,61.19421413]
[1672624696916,23.0327,9.8649,9.8571,50.0]
[1672624699141,23.0327,9.8649,9.8571,20.0]
[1672624699362,30.0,9.8648,9.8571,20.0]
[1672624699767,23.0327,9.8649,9.8572,30.0]
[1672624700083,23.0327,9.8649,9.8574,30.0]
[1672624700305,23.0327,9.8649,9.8575,20.0]
[1672624700515,23.0327,9.8649,9.8576,30.0]
[1672624700933,23.0327,9.8649,9.8577,20.0]
[1672624701989,23.0327,9.8649,9.8578,30.0]
[1672624702310,23.0327,9.8649,9.8579,20.0]
[1672624707338,23.0327,9.8649,9.8577,20.0]
[1672624707766,23.0327,9.8649,9.8575,20.0]
[1672624708302,30.0,9.8648,9.8573,20.0]
[1672624708621,30.0,9.8648,9.8571,20.0]
[1672624709016,23.0327,9.8649,9.8572,30.0]
[1672624709219,23.0327,9.8649,9.8573,20.0]
[1672624711544,30.0,9.8648,9.8573,20.0]
[1672624711748,30.0,9.8648,9.8571,20.0]
[1672624715326,30.0,9.8648,9.8566,20.0]
[1672624715858,24.5598,9.8647,9.8566,20.0]
[1672624718478,30.0,9.8646,9.8566,20.0]
[1672624719330,54.5885,9.8646,9.8566,20.0]
[1672624719527,24.5885,9.8646,9.8566,20.0]
[1672624719952,30.0,9.8645,9.8566,20.0]
[1672624725010,24.5885,9.8646,9.8566,20.0]
[1672624725963,30.0,9.8645,9.8566,20.0]
[1672624728787,24.5885,9.8646,9.8567,30.0]
[1672624729020,24.5885,9.8646,9.8568,20.0]
[1672624729220,30.0,9.8645,9.8566,20.0]
[1672624729846,24.5885,9.8646,9.8567,30.0]
[1672624730054,30.0,9.8645,9.8566,20.0]
[1672624743210,24.5885,9.8646,9.8566,20.0]
[1672624743428,30.0,9.8645,9.8566,20.0]
[1672624748995,24.5885,9.8646,9.8566,20.0]
[1672624749208,24.5885,9.8646,9.8567,30.0]
[1672624749422,24.5885,9.8646,9.8568,20.0]
[1672624749634,30.0,9.8645,9.8566,20.0]
[1672624751200,30.0,9.8645,9.8567,30.0]
[1672624751512,30.0,9.8645,9.8568,20.0]
[1672624751727,30.0,9.8645,9.8566,20.0]
[1672624756156,24.5885,9.8646,9.8566,20.0]
[1672624756345,24.5885,9.8646,9.8567,30.0]
[1672624756558,24.5885,9.8646,9.8568,20.0]
[1672624756790,24.5885,9.8646,9.8569,30.0]
[1672624757312,24.5885,9.8646,9.857,20.0]
[1672624758576,24.5885,9.8646,9.857,17.5]
[1672624758788,30.0,9.8645,9.8566,30.0]
[1672624759308,30.0,9.8645,9.8566,84.07320993]
[1672624760131,24.5885,9.8646,9.8566,54.07320993]
[1672624760343,24.5885,9.8646,9.8567,20.0]
[1672624762345,30.0,9.8645,9.8567,20.0]
[1672624763182,24.5885,9.8646,9.8568,30.0]
[1672624763418,24.5885,9.8646,9.8569,20.0]
[1672624764253,24.5885,9.8646,9.8566,54.07320993]
[1672624764254,24.5885,9.8646,9.8567,20.0]
[1672624765292,24.5885,9.8646,9.8568,30.0]
[1672624765498,24.5885,9.8646,9.8569,20.0]
[1672624765918,30.0,9.8645,9.8569,20.0]
[1672624766340,30.0,9.8645,9.8568,30.0]
[1672624766555,30.0,9.8645,9.8569,20.0]
[1672624767808,30.0,9.8645,9.8568,20.0]
[1672624768024,30.0,9.8645,9.8567,20.0]
[1672624773058,30.0,9.8645,9.8566,20.0]
[1672624773270,54.1757,9.8645,9.8566,20.0]
[1672624784003,24.1757,9.8645,9.8566,20.0]
[1672624784230,24.1757,9.8645,9.8567,30.0]
[1672624784416,24.1757,9.8645,9.8568,20.0]
[1672624785797,30.0,9.8644,9.8566,20.0]
[1672624793024,24.1757,9.8645,9.8566,20.0]
[1672624793661,30.0,9.8644,9.8566,20.0]
[1672624800911,74.39989717,9.8627,9.8565,1000.0]
[1672624801120,74.39989717,9.8615,9.8565,1000.0]
[1672624801331,30.0,9.8613,9.8565,1000.0]
[1672624801540,76.19,9.8612,9.8565,1000.0]
[1672624801755,30.0,9.8611,9.8565,1000.0]
[1672624801975,76.19,9.861,9.8565,1000.0]
[1672624802709,30.0,9.8609,9.8565,1000.0]
[1672624802917,30.0,9.8607,9.8565,1000.0]
[1672624803129,76.2,9.8606,9.8565,1000.0]
[1672624803558,30.0,9.8605,9.8565,606.96193461]
[1672624803869,76.2,9.8604,9.8565,606.96193461]
[1672624804481,30.0,9.8603,9.8565,606.96193461]
[1672624804693,1175.16290617,9.8602,9.8565,606.96193461]
[1672624804901,30.0,9.86,9.8565,606.96193461]
[1672624805128,76.2,9.8599,9.8565,456.96193461]
[1672624805535,30.0,9.8598,9.8565,456.96193461]
[1672624805742,30.0,9.8598,9.8565,306.96193461]
[1672624805743,30.0,9.8596,9.8565,306.96193461]
[1672624805959,30.0,9.8596,9.8565,206.96193461]
[1672624805960,76.21,9.8595,9.8565,206.96193461]
[1672624806163,30.0,9.8594,9.8565,206.96193461]
[1672624806388,76.21,9.8593,9.8565,206.96193461]
[1672624806712,30.0,9.8592,9.8565,206.96193461]
[1672624807024,30.0,9.859,9.8565,206.96193461]
[1672624807251,30.0,9.8588,9.8565,206.96193461]
[1672624807444,76.21,9.8587,9.8565,206.96193461]
[1672624807646,30.0,9.8586,9.8565,206.96193461]
[1672624807850,30.0,9.8584,9.8565,206.96193461]
[1672624808061,76.22,9.8583,9.8565,206.96193461]
[1672624808489,30.0,9.8582,9.8565,206.96193461]
[1672624808702,76.22,9.8581,9.8565,206.96193461]
[1672624809126,30.0,9.858,9.8565,206.96193461]
[1672624809337,30.0,9.8578,9.8565,206.96193461]
[1672624809653,30.0,9.8576,9.8565,206.96193461]
[1672624810485,30.0,9.8574,9.8565,206.96193461]
[1672624810710,76.22,9.8573,9.8565,206.96193461]
[1672624810909,30.0,9.8574,9.8565,206.96193461]
[1672624812699,30.0,9.8578,9.8565,206.96193461]
[1672624815014,30.0,9.8578,9.8471,46.8886]
[1672624815223,123.8062,9.8577,9.8472,20.0]
[1672624815544,30.0,9.8576,9.8472,20.0]
[1672624815750,30.0,9.8574,9.8473,155.3424]
[1672624815970,30.0,9.8572,9.8474,20.0]
[1672624816155,76.22,9.8571,9.84,5.88]
[1672624816365,5.85,9.85,9.8426,30.0]
[1672624816705,5.85,9.85,9.8427,20.0]
[1672624817414,5.85,9.85,9.84,5.88]
[1672624817626,5.85,9.85,9.8401,29.5]
[1672624818261,5.85,9.85,9.84,5.88]
[1672624818892,24.9891,9.8499,9.8401,20.0]
[1672624819220,24.9891,9.8499,9.8402,30.0]
[1672624819423,30.0,9.8498,9.8403,20.0]
[1672624820058,24.9891,9.8499,9.8403,20.0]
[1672624820688,30.0,9.8498,9.8403,20.0]
[1672624823003,30.0,9.8498,9.8401,20.0]
[1672624823410,52.9183,9.8498,9.8401,20.0]
[1672624824487,76.28,9.8497,9.8401,20.0]
[1672624824688,30.0,9.8496,9.8401,20.0]
[1672624824895,30.0,9.8494,9.8401,20.0]
[1672624825113,76.28,9.8493,9.8401,20.0]
[1672624825326,30.0,9.8492,9.8401,20.0]
[1672624825642,30.0,9.849,9.8401,20.0]
[1672624825852,76.29,9.8489,9.8401,20.0]
[1672624826043,30.0,9.8488,9.8401,20.0]
[1672624826254,30.0,9.8486,9.8401,20.0]
[1672624826469,76.29,9.8485,9.8401,20.0]
[1672624826797,30.0,9.8484,9.8401,20.0]
[1672624827007,76.29,9.8483,9.8401,20.0]
[1672624827223,30.0,9.8482,9.8401,20.0]
[1672624827407,30.0,9.848,9.8401,20.0]
[1672624827622,76.3,9.8479,9.8401,20.0]
[1672624827949,30.0,9.8478,9.8401,20.0]
[1672624828159,76.3,9.8477,9.8401,20.0]
[1672624828369,30.0,9.8476,9.8401,20.0]
[1672624828575,30.0,9.8474,9.8401,20.0]
[1672624828789,30.0,9.8472,9.8401,20.0]
[1672624829840,30.0,9.847,9.8401,20.0]
[1672624831641,76.3,9.8471,9.8401,20.0]
[1672624831951,76.29,9.8483,9.8401,20.0]
[1672624832369,100.2651,9.8485,9.8401,20.0]
[1672624832897,53.9751,9.8484,9.8401,20.0]
[1672624833303,93.299292,9.8482,9.8401,20.0]
[1672624833629,185.255502,9.8482,9.8401,20.0]
[1672624833824,30.0,9.8481,9.8401,20.0]
[1672624834456,76.3,9.848,9.8401,20.0]
[1672624834683,185.255502,9.8481,9.8402,30.0]
[1672624834907,185.255502,9.8481,9.8403,20.0]
[1672624835848,185.255502,9.8481,9.8404,30.0]
[1672624836272,185.255502,9.8481,9.8406,30.0]
[1672624836685,185.255502,9.8481,9.8408,30.0]
[1672624836889,185.255502,9.8481,9.8409,20.0]
[1672624837091,185.255502,9.8481,9.841,30.0]
[1672624837306,185.255502,9.8481,9.8411,20.0]
[1672624838671,185.255502,9.8481,9.8407,20.0]
[1672624839117,185.255502,9.8481,9.8408,30.0]
[1672624839317,185.255502,9.8481,9.8409,20.0]
[1672624840674,185.255502,9.8481,9.8407,20.0]
[1672624842049,185.255502,9.8481,9.8408,30.0]
[1672624842251,185.255502,9.8481,9.8409,20.0]
[1672624842886,185.255502,9.8481,9.841,30.0]
[1672624843206,185.255502,9.8481,9.8411,86.14354007]
[1672624843397,185.255502,9.8481,9.8412,30.0]
[1672624843604,185.255502,9.8481,9.8412,96.14354007]
[1672624843834,185.255502,9.8481,9.8414,30.0]
[1672624844157,185.255502,9.8481,9.8415,66.14354007]
[1672624844352,185.255502,9.8481,9.8416,50.0]
[1672624844780,185.255502,9.8481,9.8417,66.14354007]
[1672624845105,185.255502,9.8481,9.8418,50.0]
[1672624845414,185.255502,9.8481,9.8419,66.14354007]
[1672624845611,185.255502,9.8481,9.8421,30.0]
[1672624845816,185.255502,9.8481,9.8423,30.0]
[1672624846237,23.9751,9.8484,9.8425,30.0]
[1672624846460,23.9751,9.8484,9.8426,20.0]
[1672624846675,23.9751,9.8484,9.8425,60.88803807]
[1672624846991,23.9751,9.8484,9.8418,30.0]
[1672624848250,23.9751,9.8484,9.8419,20.0]
[1672624848773,23.9751,9.8484,9.842,30.0]
[1672624849092,23.9751,9.8484,9.8422,30.0]
[1672624849283,23.9751,9.8484,9.8424,30.0]
[1672624849708,23.9751,9.8484,9.8426,30.0]
[1672624849929,23.9751,9.8484,9.8427,20.0]
[1672624854877,23.9751,9.8484,9.8425,20.0]
[1672624855295,76.21,9.8584,9.8429,30.0]
[1672624855491,30.0,9.8583,9.85,5.83]
[1672624855709,30.0,9.8581,9.8501,23.3508]
[1672624855923,76.22,9.858,9.8501,43.3508]
[1672624856132,76.22,9.858,9.8502,20.0]
[1672624856550,76.22,9.8582,9.8502,20.0]
[1672624856765,30.0,9.8581,9.8502,20.0]
[1672624856978,76.22,9.858,9.8502,43.4552]
[1672624857931,76.22,9.8582,9.8502,43.4552]
[1672624858142,30.0,9.8594,9.8503,23.4552]
[1672624858351,76.21,9.8593,9.8504,20.0]
[1672624858536,30.0,9.8592,9.8505,30.0]
[1672624858868,76.21,9.8591,9.8506,20.0]
[1672624859089,30.0,9.859,9.8506,43.4552]
[1672624859278,76.21,9.8589,9.8506,23.4552]
[1672624859480,30.0,9.8588,9.8507,20.0]
[1672624859699,76.21,9.8587,9.8507,44.6182]
[1672624859906,30.0,9.8586,9.8507,24.6182]
[1672624860137,76.21,9.8585,9.8508,20.0]
[1672624860341,30.0,9.8584,9.8508,20.0]
[1672624860546,76.22,9.8583,9.8508,20.0]
[1672624860760,30.0,9.8582,9.8508,20.0]
[1672624861079,76.22,9.8581,9.8508,20.0]
[1672624861287,30.0,9.858,9.8508,20.0]
[1672624861504,76.22,9.8579,9.8508,20.0]
[1672624861693,30.0,9.8578,9.8508,20.0]
[1672624861904,76.22,9.8577,9.8508,20.0]
[1672624862117,30.0,9.8578,9.8508,20.0]
[1672624862341,76.22,9.8577,9.8508,20.0]
[1672624862527,30.0,9.8576,9.8508,20.0]
[1672624862862,30.0,9.8574,9.8508,20.0]
[1672624863071,30.0,9.8572,9.8508,20.0]
[1672624863287,76.22,9.8571,9.8508,20.0]
[1672624863602,30.0,9.857,9.8508,20.0]
[1672624863793,30.0,9.8568,9.8508,20.0]
[1672624864004,76.23,9.8567,9.84,5.88]
[1672624864215,233.8164,9.8567,9.8432,20.0]
[1672624864434,30.0,9.8565,9.8427,30.0]
[1672624864645,76.23,9.8564,9.8427,30.0]
[1672624864861,30.0,9.8563,9.8427,30.0]
[1672624865072,30.0,9.8561,9.8427,30.0]
[1672624865281,76.23,9.856,9.8427,30.0]
[1672624865476,30.0,9.8559,9.8427,30.0]
[1672624865685,76.23,9.8558,9.8427,52.8067]
[1672624865897,30.0,9.8557,9.8428,20.0]
[1672624866106,30.0,9.8555,9.8428,20.0]
[1672624866425,30.0,9.8553,9.8428,20.0]
[1672624866629,30.0,9.8551,9.8428,20.0]
[1672624866841,76.24,9.855,9.8428,20.0]
[1672624867261,30.0,9.8549,9.8428,20.0]
[1672624867472,30.0,9.8547,9.8428,20.0]
[1672624867792,30.0,9.8545,9.8428,20.0]
[1672624868002,76.25,9.8544,9.8428,20.0]
[1672624868209,30.0,9.8543,9.8428,20.0]
[1672624868427,76.25,9.8542,9.8428,20.0]
[1672624868639,30.0,9.8541,9.8428,20.0]
[1672624868848,30.0,9.8539,9.8428,20.0]
[1672624869047,30.0,9.8537,9.8428,20.0]
[1672624869260,76.25,9.8536,9.8428,20.0]
[1672624869471,30.0,9.8535,9.8428,20.0]
[1672624869681,30.0,9.8533,9.8428,20.0]
[1672624869901,30.0,9.8531,9.8428,20.0]
[1672624870132,76.26,9.853,9.8428,20.0]
[1672624870321,30.0,9.8529,9.8428,20.0]
[1672624870532,30.0,9.8527,9.8428,20.0]
[1672624870746,30.0,9.8525,9.8428,20.0]
[1672624870958,76.26,9.8524,9.8428,20.0]
[1672624871162,30.0,9.8523,9.8428,20.0]
[1672624871368,30.0,9.8521,9.8428,20.0]
[1672624871579,76.26,9.852,9.8428,20.0]
[1672624871786,30.0,9.8519,9.8428,20.0]
[1672624872003,76.27,9.8518,9.8428,20.0]
[1672624872218,30.0,9.8517,9.8428,20.0]
[1672624872430,76.27,9.8516,9.8428,20.0]
[1672624872857,30.0,9.8515,9.8428,20.0]
[1672624873061,76.27,9.8514,9.8428,20.0]
[1672624873259,30.0,9.8513,9.8428,20.0]
[1672624873470,30.0,9.8511,9.8428,20.0]
[1672624873786,76.27,9.851,9.8428,20.0]
[1672624873992,30.0,9.8509,9.8428,20.0]
[1672624874203,76.27,9.8508,9.8428,20.0]
[1672624874955,288.46412539,9.8508,9.8428,20.0]
[1672624875571,30.0,9.8507,9.8428,20.0]
[1672624875780,76.27,9.8506,9.8428,20.0]
[1672624876009,76.27,9.8507,9.8428,20.0]
[1672624876322,187.25322539,9.8506,9.8428,20.0]
[1672624876531,76.28,9.8505,9.8428,20.0]
[1672624876958,30.0,9.8504,9.8428,20.0]
[1672624877686,76.28,9.8504,9.8428,20.0]
[1672624878003,209.80982539,9.8506,9.8428,20.0]
[1672624880299,209.80982539,9.8506,9.8429,30.0]
[1672624880718,209.80982539,9.8506,9.843,20.0]
[1672624883136,209.80982539,9.8506,9.8431,15.80730786]
[1672624883342,209.80982539,9.8506,9.8432,20.0]
[1672624883584,209.80982539,9.8506,9.843,20.0]
[1672624883792,30.0,9.8505,9.843,20.0]
[1672624884017,30.0,9.8505,9.8428,20.0]
[1672624886638,209.80982539,9.8506,9.8428,20.0]
[1672624886832,30.0,9.8505,9.8428,20.0]
[1672624890300,209.80982539,9.8506,9.8428,20.0]
[1672624890512,30.0,9.8505,9.8428,20.0]
[1672624892420,209.80982539,9.8506,9.8428,20.0]
[1672624893161,30.0,9.8505,9.8428,20.0]
[1672624893768,76.28,9.8504,9.8428,20.0]
[1672624893986,30.0,9.8503,9.8428,20.0]
[1672624894204,76.28,9.8502,9.8428,20.0]
[1672624894619,30.0,9.8501,9.8428,20.0]
[1672624895260,76.28,9.8502,9.8428,20.0]
[1672624895463,30.0,9.8501,9.8428,20.0]
[1672624895675,76.28,9.8504,9.8428,20.0]